bitfinex-derivatives/quotes_SOLF0:USTF0_20250328
["timestamp","ask_amount","ask_price","bid_price","bid_amount"]
[1743170603953,30.54,130.18,130.12,7.687]
[1743170604144,30.54,130.18,130.1,30.54]
[1743170604348,0.05554715,130.15,130.13,0.05139546]
[1743170606351,0.05554715,130.15,130.13,30.59139546]
[1743170606748,0.05554715,130.15,130.13,0.05139546]
[1743170607757,7.6861,130.14,130.13,0.05139546]
[1743170608959,7.6884,130.11,130.07,261.6354]
[1743170609157,7.6884,130.11,130.07,253.24]
[1743170609359,24.94441031,130.12,130.04,30.54]
[1743170609565,30.54,130.11,130.04,30.54]
[1743170609861,24.94441031,130.1,130.02,38.7629]
[1743170610154,7.6911,130.06,130.05,0.04916949]
[1743170610557,0.05194796,130.07,130.05,0.04916949]
[1743170610759,7.6909,130.06,130.05,0.04916949]
[1743170611459,0.05194796,130.07,130.01,253.46]
[1743170611754,24.94441031,130.06,129.98,137.33026243]
[1743170611959,30.54,130.05,129.96,38.6942]
[1743170612159,30.54,130.05,129.96,100.6942]
[1743170612562,30.54,130.05,129.97,30.56]
[1743170612759,0.05820902,130.02,130.01,7.6933]
[1743170613852,0.05820902,130.02,130.0,0.05689612]
[1743170614560,0.05820902,130.02,130.0,7.75099612]
[1743170614755,0.05820902,130.02,130.0,0.05689612]
[1743170614962,0.05820902,130.02,130.01,7.6938]
[1743170615162,0.05820902,130.02,130.0,0.05689612]
[1743170615565,7.75180902,130.02,130.0,0.05689612]
[1743170615759,30.61820902,130.02,130.0,0.05689612]
[1743170615965,55.56261933,130.02,129.94,30.56]
[1743170616268,24.94441031,130.0,129.9,30.56]
[1743170616565,30.56,129.99,129.91,5.35523923]
[1743170616761,30.56,129.99,129.92,1.41363923]
[1743170617166,0.05755895,129.97,129.94,0.05840812]
[1743170617357,7.75405895,129.97,129.94,0.05840812]
[1743170618759,7.6968,129.96,129.94,0.05840812]
[1743170618960,30.58,129.96,129.94,0.05840812]
[1743170619471,7.6974,129.95,129.94,0.05840812]
[1743170620363,55.52441031,129.96,129.89,253.6]
[1743170621168,24.94441031,129.94,129.87,11.6436]
[1743170621464,30.58,129.93,129.91,0.05759444]
[1743170621667,30.58,129.93,129.84,253.74]
[1743170621860,24.94441031,129.9,129.84,253.74]
[1743170622063,30.58,129.89,129.82,4.1077]
[1743170622266,7.7025,129.87,129.83,7.7043]
[1743170622465,30.58,129.89,129.82,4.1077]
[1743170622665,30.58,129.89,129.8,4.0061]
[1743170622666,24.94441031,129.88,129.8,4.0061]
[1743170622866,0.05840051,129.87,129.84,0.05256769]
[1743170623061,55.52441031,129.86,129.78,253.74]
[1743170624367,0.04876933,129.83,129.81,0.05760567]
[1743170624567,0.04876933,129.83,129.81,7.76290567]
[1743170624765,0.04876933,129.83,129.81,0.05760567]
[1743170625270,30.58,129.89,129.81,0.05760567]
[1743170625459,30.58,129.89,129.8,4.1766]
[1743170625658,7.7025,129.87,129.83,7.7043]
[1743170625971,30.58,129.86,129.79,86.94441031]
[1743170626165,30.58,129.86,129.83,7.7044]
[1743170626368,0.05678669,129.84,129.81,0.05457442]
[1743170627874,0.05678669,129.84,129.83,7.7045]
[1743170628261,0.05678669,129.84,129.82,7.7049]
[1743170628465,0.05678669,129.84,129.81,0.05457442]
[1743170629474,0.05678669,129.84,129.81,7.75977442]
[1743170629674,7.76078669,129.84,129.81,0.05457442]
[1743170630275,0.05678669,129.84,129.81,0.05457442]
[1743170630872,55.601197,129.84,129.81,0.05457442]
[1743170631173,30.65678669,129.84,129.81,0.05457442]
[1743170632183,30.65678669,129.84,129.82,7.7049]
[1743170632369,30.65678669,129.84,129.81,0.05457442]
[1743170633276,30.65678669,129.84,129.81,7.76017442]
[1743170633478,30.65678669,129.84,129.81,0.05457442]
[1743170633976,7.7051,129.82,129.81,0.05457442]
[1743170634177,30.65678669,129.84,129.81,0.05457442]
[1743170634569,7.7049,129.83,129.81,0.05457442]
[1743170635078,7.7051,129.82,129.81,0.05457442]
[1743170635471,30.65678669,129.84,129.81,0.05457442]
[1743170636275,0.05678669,129.84,129.81,0.05457442]
[1743170636767,7.7046,129.83,129.81,7.75997442]
[1743170636968,0.05678669,129.84,129.81,0.05457442]
[1743170637568,7.76098669,129.84,129.81,0.05457442]
[1743170637872,0.05678669,129.84,129.81,0.05457442]
[1743170638073,7.7051,129.82,129.81,0.05457442]
[1743170644872,0.05678669,129.84,129.81,0.05457442]
[1743170645080,0.05678669,129.84,129.81,30.65457442]
[1743170645280,7.76128669,129.84,129.81,30.65457442]
[1743170645482,0.05678669,129.84,129.81,30.65457442]
[1743170645983,0.05678669,129.84,129.81,0.05457442]
[1743170646282,7.7051,129.82,129.81,0.05457442]
[1743170647082,0.05678669,129.84,129.81,0.05457442]
[1743170648290,0.05678669,129.84,129.83,7.7045]
[1743170648581,30.6,129.89,129.82,4.3453]
[1743170648774,4.2032,129.91,129.83,30.6]
[1743170648973,24.94441031,129.95,129.83,30.6]
[1743170649177,7.6989,129.93,129.87,24.94441031]
[1743170649383,7.6989,129.93,129.9,7.7]
[1743170649685,30.6,129.95,129.88,4.1157]
[1743170649885,7.75098933,129.93,129.9,7.75860215]
[1743170650080,7.75098933,129.93,129.9,0.05830215]
[1743170650081,0.05208933,129.93,129.9,0.05830215]
[1743170650481,21.65296,129.91,129.9,0.05830215]
[1743170650682,13.95326,129.91,129.84,30.6]
[1743170650884,7.7021,129.87,129.83,7.7042]
[1743170651082,13.95326,129.91,129.82,30.6]
[1743170651283,13.95326,129.91,129.83,1.41463261]
[1743170651489,7.7012,129.89,129.85,7.703]
[1743170651682,13.95326,129.91,129.82,30.6]
[1743170651882,0.04871127,129.88,129.86,0.04948456]
[1743170652086,7.75031127,129.88,129.86,0.04948456]
[1743170652887,0.04871127,129.88,129.86,0.04948456]
[1743170653580,7.75031127,129.88,129.86,0.04948456]
[1743170654488,0.04871127,129.88,129.86,0.04948456]
[1743170654879,7.75071127,129.88,129.86,0.04948456]
[1743170655079,0.04871127,129.88,129.86,0.04948456]
[1743170656180,13.95326,129.91,129.86,0.04948456]
[1743170656889,13.95326,129.91,129.87,24.94441031]
[1743170657087,13.95326,129.91,129.88,34.9473]
[1743170657491,7.7003,129.9,129.88,30.6]
[1743170657680,14.00652521,129.91,129.86,261.81168456]
[1743170657886,14.00652521,129.91,129.86,254.10948456]
[1743170658687,7.7013,129.89,129.86,261.81208456]
[1743170658896,14.00652521,129.91,129.86,261.81208456]
[1743170659299,7.7012,129.89,129.86,261.81208456]
[1743170659592,14.00652521,129.91,129.86,254.10948456]
[1743170659797,7.7012,129.89,129.86,254.10948456]
[1743170660087,14.00652521,129.91,129.86,254.10948456]
[1743170660294,14.00652521,129.91,129.86,261.81188456]
[1743170661089,7.7014,129.89,129.86,261.81188456]
[1743170661895,14.00652521,129.91,129.86,0.04948456]
[1743170662289,7.701,129.89,129.86,0.04948456]
[1743170662492,14.00652521,129.91,129.87,7.7018]
[1743170662693,14.00652521,129.91,129.86,0.04948456]
[1743170662893,14.00652521,129.91,129.89,7.7008]
[1743170663095,14.00652521,129.91,129.87,30.58]
[1743170663397,7.7004,129.9,129.89,0.05038256]
[1743170663792,14.00652521,129.91,129.89,0.05038256]
[1743170663993,21.70642521,129.91,129.89,0.05038256]
[1743170666093,14.00652521,129.91,129.9,7.7003]
[1743170667390,14.00652521,129.91,129.89,0.05038256]
[1743170667592,7.7003,129.9,129.89,0.05038256]
[1743170668698,21.70652521,129.91,129.89,0.05038256]
[1743170668898,14.00652521,129.91,129.89,0.05038256]
[1743170670395,14.00652521,129.91,129.89,7.75088256]
[1743170670600,14.00652521,129.91,129.89,0.05038256]
[1743170671191,14.00652521,129.91,129.89,7.75108256]
[1743170671402,14.00652521,129.91,129.89,0.05038256]
[1743170671800,21.70632521,129.91,129.89,7.75098256]
[1743170672103,21.70632521,129.91,129.89,0.05038256]
[1743170672401,14.00652521,129.91,129.89,0.05038256]
[1743170672802,30.58,129.97,129.89,0.05038256]
[1743170673009,29.12721031,129.96,129.84,34.5389]
[1743170673199,29.12721031,129.96,129.85,26.35881327]
[1743170673409,4.1828,129.96,129.9,7.7003]
[1743170673602,4.1828,129.96,129.87,24.94441031]
[1743170673910,7.6996,129.92,129.9,0.04994569]
[1743170675006,7.6997,129.91,129.9,0.04994569]
[1743170675409,0.05592262,129.93,129.9,0.04994569]
[1743170675606,7.6997,129.91,129.9,0.04994569]
[1743170676503,7.6997,129.91,129.9,4.569e-05]
[1743170682409,7.6995,129.92,129.9,4.569e-05]
[1743170682908,0.05592262,129.93,129.9,4.569e-05]
[1743170683303,7.6997,129.91,129.9,4.569e-05]
[1743170685212,0.05592262,129.93,129.9,4.569e-05]
[1743170686313,7.6992,129.92,129.9,4.569e-05]
[1743170687807,7.6997,129.91,129.9,4.569e-05]
[1743170689115,0.05592262,129.93,129.9,4.569e-05]
[1743170689315,0.05592262,129.93,129.91,38.2594]
[1743170689513,0.05592262,129.93,129.91,30.56]
[1743170689713,7.6991,129.92,129.91,30.56]
[1743170690207,7.6997,129.91,129.9,4.569e-05]
[1743170692814,7.6996,129.92,129.9,4.569e-05]
[1743170693308,7.75472262,129.93,129.9,7.70004569]
[1743170693508,0.05592262,129.93,129.9,7.70004569]
[1743170693914,7.6992,129.92,129.9,7.70004569]
[1743170694714,7.75472262,129.93,129.9,7.70004569]
[1743170695101,7.75472262,129.93,129.9,4.569e-05]
[1743170695307,0.05592262,129.93,129.91,30.56]
[1743170695807,0.05592262,129.93,129.91,38.2592]
[1743170697715,0.05592262,129.93,129.91,30.56]
[1743170697917,0.05592262,129.93,129.9,4.569e-05]
[1743170698416,0.05592262,129.93,129.91,7.6994]
[1743170698622,0.05592262,129.93,129.9,4.569e-05]
[1743170699014,0.05592262,129.93,129.92,7.6991]
[1743170699213,0.05592262,129.93,129.91,43.97730401]
[1743170699412,0.05592262,129.93,129.91,30.54]
[1743170699611,7.6997,129.91,129.9,4.569e-05]
[1743170699916,0.05592262,129.93,129.9,4.569e-05]
[1743170700715,7.6997,129.91,129.9,4.569e-05]
[1743170701521,7.7015,129.88,129.87,108.74082782]
[1743170701708,21.13880401,129.88,129.87,102.76862782]
[1743170701906,7.7015,129.88,129.87,102.76862782]
[1743170702112,38.2412,129.89,129.87,102.76862782]
[1743170702317,13.43730401,129.94,129.87,102.76862782]
[1743170702517,13.43730401,129.92,129.87,102.76862782]
[1743170702718,13.48798776,129.92,129.89,0.05431587]
[1743170702917,0.05068375,129.92,129.89,0.05431587]
[1743170703418,13.43730401,129.98,129.9,13.43730401]
[1743170703615,13.43730401,129.98,129.88,43.97730401]
[1743170703812,7.6974,129.95,129.9,7.6999]
[1743170704017,13.43730401,129.98,129.9,7.6999]
[1743170704219,13.43730401,129.96,129.88,43.97730401]
[1743170704417,43.97730401,129.99,129.9,13.43730401]
[1743170704618,13.43730401,130.01,129.92,13.43730401]
[1743170704814,13.43730401,130.01,129.93,30.54]
[1743170705124,13.43730401,129.99,129.93,30.54]
[1743170705420,7.6974,129.96,129.93,30.54]
[1743170705609,43.97730401,129.99,129.93,30.54]
[1743170705917,13.43730401,130.01,129.93,30.54]
[1743170705918,0.04961055,129.96,129.93,30.58915048]
[1743170707015,7.6946,130.0,129.96,7.6967]
[1743170707217,7.6946,130.0,129.96,30.54]
[1743170707516,7.6946,130.0,129.96,38.2364]
[1743170707822,7.6951,129.99,129.96,30.54]
[1743170708219,7.6951,129.99,129.96,30.59194487]
[1743170708220,0.04961335,129.99,129.96,30.59194487]
[1743170708427,7.6962,129.97,129.96,30.59194487]
[1743170709723,7.6962,129.97,129.96,0.05194487]
[1743170710720,7.6986,129.93,129.92,253.94]
[1743170711619,7.6996,129.92,129.9,30.54]
[1743170711820,0.05306214,129.94,129.91,0.05614513]
[1743170712625,13.43730401,129.93,129.91,0.05614513]
[1743170712824,7.6991,129.92,129.91,0.05614513]
[1743170713425,0.05306214,129.94,129.91,0.05614513]
[1743170714823,7.75106214,129.94,129.91,0.05614513]
[1743170715026,0.05306214,129.94,129.91,0.05614513]
[1743170715526,7.6989,129.93,129.91,0.05614513]
[1743170716121,0.05306214,129.94,129.91,0.05614513]
[1743170716628,0.05306214,129.94,129.91,7.75554513]
[1743170716822,0.05306214,129.94,129.91,0.05614513]
[1743170717621,0.05306214,129.94,129.91,13.49344914]
[1743170717822,0.05306214,129.94,129.91,21.19304914]
[1743170718019,0.05306214,129.94,129.91,0.05614513]
[1743170718432,7.75106214,129.94,129.91,0.05614513]
[1743170718724,0.05306214,129.94,129.91,0.05614513]
[1743170718920,7.6988,129.93,129.91,0.05614513]
[1743170719128,0.05306214,129.94,129.91,0.05614513]
[1743170719517,43.97730401,130.0,129.91,13.49344914]
[1743170719720,30.54,130.0,129.93,13.43730401]
[1743170719920,17.39970401,130.02,129.94,4.3285]
[1743170720123,43.97730401,130.04,129.95,13.43730401]
[1743170720320,43.97730401,130.04,129.96,30.54]
[1743170720321,13.43730401,130.04,129.96,30.54]
[1743170720527,30.54,130.05,129.97,13.43730401]
[1743170720728,0.04965278,130.01,129.99,7.74769982]
[1743170720930,47.95170401,130.06,129.99,7.74769982]
[1743170721125,0.04984912,130.01,129.99,0.05299982]
[1743170721330,0.05460511,130.01,129.99,44.03030383]
[1743170721731,0.05460511,130.01,130.0,7.6941]
[1743170722336,7.6923,130.04,130.01,7.6936]
[1743170722534,13.43730401,130.06,129.99,30.54]
[1743170722929,7.6942,130.01,129.99,30.54]
[1743170723134,13.43730401,130.06,129.99,30.54]
[1743170723336,13.43730401,130.04,129.99,30.54]
[1743170723534,7.6944,130.0,129.99,30.54]
[1743170724033,7.695,129.99,129.98,0.05833959]
[1743170726340,7.6946,130.0,129.98,0.05833959]
[1743170726949,7.74627701,130.01,129.98,0.05833959]
[1743170727653,0.05217701,130.01,129.98,0.05833959]
[1743170727953,30.54,130.08,129.99,13.43730401]
[1743170728144,30.54,130.08,130.0,7.6939]
[1743170728340,17.41170401,130.09,129.99,43.97730401]
[1743170728543,47.95170401,130.09,130.02,7.6929]
[1743170728851,30.54,130.1,130.03,13.43730401]
[1743170729051,0.05778285,130.07,130.04,0.05299719]
[1743170729253,7.74838285,130.07,130.04,0.05299719]
[1743170729646,0.05778285,130.07,130.05,43.95730401]
[1743170730049,17.37530401,130.13,130.05,43.95730401]
[1743170730544,7.6894,130.09,130.05,43.95730401]
[1743170730745,7.6894,130.09,130.05,51.64840401]
[1743170730949,28.96045153,130.13,130.05,30.52]
[1743170731147,0.05119673,130.08,130.06,0.05457776]
[1743170732252,0.05119673,130.08,130.07,7.6903]
[1743170732653,0.05119673,130.08,130.06,30.57457776]
[1743170732956,0.05119673,130.08,130.06,0.05457776]
[1743170733341,7.6903,130.07,130.06,0.05457776]
[1743170737057,7.74119673,130.08,130.06,0.05457776]
[1743170737253,0.05119673,130.08,130.06,0.05457776]
[1743170737651,7.6903,130.07,130.06,0.05457776]
[1743170738753,0.05119673,130.08,130.06,0.05457776]
[1743170739158,0.05119673,130.08,130.07,7.6903]
[1743170739657,0.05119673,130.08,130.06,0.05457776]
[1743170739857,7.74139673,130.08,130.06,0.05457776]
[1743170740256,0.05119673,130.08,130.06,0.05457776]
[1743170740451,7.74119673,130.08,130.06,0.05457776]
[1743170741056,7.74129673,130.08,130.06,0.05457776]
[1743170742060,0.05119673,130.08,130.06,7.74537776]
[1743170742559,25.02245153,130.15,130.07,30.52]
[1743170742756,30.52,130.16,130.07,34.4792]
[1743170743056,25.02245153,130.15,130.07,34.4792]
[1743170743455,25.02245153,130.15,130.07,30.52]
[1743170743654,7.6897,130.08,130.07,30.52]
[1743170743858,30.52,130.13,130.07,30.52]
[1743170744057,0.05518511,130.09,130.07,30.52]
[1743170744259,7.74468511,130.09,130.07,30.52]
[1743170744462,0.05518511,130.09,130.07,30.57910327]
[1743170744760,7.74468511,130.09,130.07,30.57910327]
[1743170744959,0.05518511,130.09,130.07,30.57910327]
[1743170745660,0.05518511,130.09,130.07,38.26890327]
[1743170746255,7.6897,130.08,130.07,30.57910327]
[1743170746462,0.05518511,130.09,130.07,30.57910327]
[1743170746855,7.74468511,130.09,130.07,30.57910327]
[1743170747161,0.05518511,130.09,130.07,30.57910327]
[1743170747355,7.6876,130.12,130.07,30.57910327]
[1743170747555,30.5,130.16,130.07,30.57910327]
[1743170747759,30.5,130.16,130.07,30.52]
[1743170748060,25.02245153,130.17,130.07,30.52]
[1743170748358,25.02245153,130.17,130.11,7.6877]
[1743170748558,0.05401211,130.13,130.11,0.05831317]
[1743170749160,7.6873,130.12,130.11,0.05831317]
[1743170750154,7.6873,130.12,130.11,1.317e-05]
[1743170760669,38.1873,130.12,130.11,1.317e-05]
[1743170762176,7.6873,130.12,130.11,1.317e-05]
[1743170762477,7.74101211,130.13,130.11,7.68781317]
[1743170762670,0.05401211,130.13,130.11,1.317e-05]
[1743170762870,7.6873,130.12,130.11,1.317e-05]
[1743170764271,30.5,130.12,130.03,261.3321]
[1743170764478,15.63159699,130.08,130.02,128.10052848]
[1743170764874,15.63159699,130.08,130.03,7.6926]
[1743170765075,15.63159699,130.08,130.02,128.10052848]
[1743170765476,0.05808902,130.06,130.04,0.04959449]
[1743170766080,7.6915,130.05,130.04,0.04959449]
[1743170766781,7.6915,130.05,130.04,9.449e-05]
[1743170767481,7.695,129.99,129.97,292.1583]
[1743170767687,46.18968601,130.06,129.97,292.1583]
[1743170767688,15.63159699,130.03,129.97,292.1583]
[1743170767877,7.6944,130.01,129.97,299.8541]
[1743170768181,15.63159699,130.03,129.97,292.1583]
[1743170768578,7.6949,130.0,129.99,0.05832044]
[1743170768882,0.05552098,130.01,129.99,15.68991743]
[1743170769177,30.5,130.06,129.99,0.05832044]
[1743170769479,7.6936,130.02,129.99,38.25332044]
[1743170769882,30.5,130.06,129.99,30.55832044]
[1743170770080,7.6936,130.02,129.99,38.25322044]
[1743170770384,0.05022718,130.04,129.99,30.55832044]
[1743170770778,7.6929,130.03,130.0,7.6941]
[1743170770980,0.05022718,130.04,129.99,30.55832044]
[1743170771283,0.05022718,130.04,130.0,25.03947248]
[1743170771582,53.61569936,130.15,130.06,25.03947248]
[1743170771778,53.61569936,130.15,130.07,30.5]
[1743170771974,7.6876,130.12,130.08,7.6897]
[1743170772177,7.6876,130.12,130.07,30.5]
[1743170772377,41.45616862,130.16,130.07,30.5]
[1743170772577,0.05233178,130.11,130.1,7.6882]
[1743170772785,41.45616862,130.16,130.1,38.1882]
[1743170772983,0.04901912,130.12,130.1,38.1882]
[1743170773374,0.04901912,130.12,130.1,38.24624764]
[1743170773686,0.04901912,130.12,130.1,30.55804764]
[1743170774086,41.45616862,130.16,130.1,30.55804764]
[1743170774396,41.45616862,130.16,130.1,55.59752012]
[1743170774695,7.6843,130.18,130.1,55.59752012]
[1743170775196,7.6847,130.17,130.13,7.6864]
[1743170775491,0.02207086,130.15,130.13,30.55886007]
[1743170775684,0.02207086,130.15,130.13,38.24526007]
[1743170775886,0.02207086,130.15,130.13,30.55886007]
[1743170776288,0.02207086,130.15,130.13,38.24506007]
[1743170776799,0.02207086,130.15,130.13,30.55886007]
[1743170776996,7.6861,130.14,130.13,30.55886007]
[1743170777289,0.02207086,130.15,130.13,30.55886007]
[1743170777693,0.02207086,130.15,130.14,7.6861]
[1743170777894,30.5,130.2,130.14,7.6861]
[1743170778192,7.6839,130.18,130.14,7.6861]
[1743170778498,37.30077503,130.26,130.16,25.03947248]
[1743170778695,42.76130255,130.26,130.18,25.03947248]
[1743170778889,4.05,130.28,130.2,7.74115979]
[1743170779085,7.6796,130.26,130.2,55.53947248]
[1743170779284,59.76847248,130.3,130.23,0.05908038]
[1743170779686,7.6802,130.24,130.23,0.05908038]
[1743170779998,32.71967248,130.24,130.23,8.038e-05]
[1743170780990,7.6838,130.18,130.15,30.48]
[1743170781501,7.6833,130.19,130.15,30.48]
[1743170781895,7.6838,130.18,130.15,30.48]
[1743170782101,0.05043389,130.18,130.16,0.0541885]
[1743170782392,7.6815,130.22,130.16,25.09366098]
[1743170783198,7.6821,130.21,130.17,4.084]
[1743170783387,34.5483,130.26,130.18,30.48]
[1743170783588,34.5483,130.26,130.18,30.53762711]
[1743170783898,7.683,130.2,130.18,30.48]
[1743170784295,7.683,130.2,130.18,30.53045098]
[1743170784591,7.6832,130.19,130.18,0.05045098]
[1743170784787,25.03947248,130.21,130.14,30.48]
[1743170784987,25.03947248,130.21,130.17,0.05397746]
[1743170785491,7.6838,130.18,130.17,0.05397746]
[1743170787190,7.6838,130.18,130.17,7.746e-05]
[1743170788091,7.6873,130.12,130.11,30.48]
[1743170788698,7.6873,130.12,130.09,39.0626]
[1743170788894,55.51947248,130.17,130.09,39.0626]
[1743170789090,0.05567164,130.12,130.09,39.1180546]
[1743170789291,0.05567164,130.12,130.09,39.0626]
[1743170789588,7.6882,130.11,130.09,8.63985404]
[1743170789790,0.05567164,130.12,130.09,8.63985404]
[1743170789992,7.6885,130.1,130.09,8.63985404]
[1743170790393,7.6885,130.1,130.09,0.05725404]
[1743170791496,7.6882,130.11,130.09,0.05725404]
[1743170792098,0.05567164,130.12,130.09,0.05725404]
[1743170792499,7.6885,130.1,130.09,0.05725404]
[1743170792799,0.05567164,130.12,130.09,0.05725404]
[1743170793001,7.6882,130.11,130.09,0.05725404]
[1743170793393,0.05567164,130.12,130.09,0.05725404]
[1743170793800,7.6883,130.11,130.09,0.05725404]
[1743170794100,0.05567164,130.12,130.09,0.05725404]
[1743170794899,55.51947248,130.11,130.09,5.404e-05]
[1743170795210,55.51947248,130.11,130.03,4.0397]
[1743170795505,7.6918,130.05,130.03,4.0397]
[1743170795803,55.51947248,130.11,130.03,4.0397]
[1743170796203,0.05376805,130.08,130.06,0.04949567]
[1743170796511,7.6903,130.07,130.06,0.04949567]
[1743170797006,0.05376805,130.08,130.06,0.04949567]
[1743170797893,7.74376805,130.08,130.06,0.04949567]
[1743170798091,0.05376805,130.08,130.06,0.04949567]
[1743170798297,7.6903,130.07,130.06,0.04949567]
[1743170800005,7.6903,130.07,130.06,9.567e-05]
[1743170800603,7.6951,129.99,129.94,253.58]
[1743170800802,7.6951,129.99,129.95,7.6971]
[1743170801000,7.6947,130.0,129.94,253.58]
[1743170801506,30.48,130.02,129.94,253.58]
[1743170801507,30.48,130.02,129.95,55.51947248]
[1743170801708,0.0486367,129.98,129.96,0.05909781]
[1743170802105,0.0486367,129.98,129.96,7.75559781]
[1743170803011,0.0486367,129.98,129.96,0.05909781]
[1743170803809,30.5286367,129.98,129.96,9.781e-05]
[1743170804112,55.56810918,129.98,129.89,3.9477]
[1743170804307,28.99927248,129.97,129.89,3.9477]
[1743170805019,7.6995,129.92,129.89,3.9477]
[1743170805220,0.05798969,129.94,129.92,0.05088581]
[1743170805410,0.05798969,129.94,129.89,3.9477]
[1743170805606,0.05798969,129.94,129.92,0.05191734]
[1743170807516,7.75608969,129.94,129.92,0.05191734]
[1743170808208,0.05798969,129.94,129.92,0.05191734]
[1743170808714,7.6986,129.93,129.92,0.05191734]
[1743170809319,0.05798969,129.94,129.92,0.05191734]
[1743170809514,30.5,130.0,129.92,0.05191734]
[1743170809716,30.5,130.0,129.91,55.53947248]
[1743170809906,30.5,130.0,129.94,7.6977]
[1743170810214,30.5,130.0,129.91,55.53947248]
[1743170810610,29.31457248,130.03,129.93,25.03947248]
[1743170810611,30.5,130.02,129.93,25.03947248]
[1743170810814,0.05820671,129.97,129.94,34.47760324]
[1743170811014,30.5,130.02,129.94,34.4199]
[1743170811415,30.5,130.02,129.94,96.4199]
[1743170811713,30.5,130.02,129.94,34.4199]
[1743170811913,25.03947248,130.01,129.89,496.78807248]
[1743170812112,25.08802048,129.99,129.9,30.5]
[1743170812312,25.08802048,129.99,129.94,0.05208335]
[1743170812313,30.5,129.98,129.94,0.05208335]
[1743170812513,0.05481675,129.96,129.94,0.05208335]
[1743170813013,7.698,129.95,129.94,0.05208335]
[1743170813309,0.05481675,129.96,129.89,3.9477]
[1743170813515,55.55947248,129.95,129.86,3.9199]
[1743170813718,55.55947248,129.95,129.87,30.52]
[1743170813915,7.6984,129.94,129.9,7.7]
[1743170814308,0.04997382,129.93,129.89,25.03947248]
[1743170814514,59.89907248,130.0,129.93,7.6984]
[1743170814715,30.52,130.0,129.91,87.03947248]
[1743170815118,30.52,130.0,129.92,4.1339]
[1743170815319,55.55947248,130.0,129.92,4.1339]
[1743170815823,7.6968,129.96,129.95,0.0572972]
[1743170816013,7.6968,129.96,129.95,9.72e-05]
[1743170819425,0.05060711,129.97,129.95,9.72e-05]
[1743170819821,30.52,130.02,129.97,7.6958]
[1743170820020,30.52,130.02,129.94,4.1991]
[1743170820432,30.52,130.02,129.93,55.55947248]
[1743170820433,7.6977,129.95,129.93,30.52]
[1743170820633,30.52,129.99,129.93,30.52]
[1743170821132,7.6968,129.96,129.95,0.0573486]
[1743170821729,7.75510232,129.97,129.95,0.0573486]
[1743170821932,0.05860232,129.97,129.95,0.0573486]
[1743170822331,55.55947248,129.96,129.85,278.89947248]
[1743170822741,7.7007,129.9,129.86,30.52]
[1743170823038,7.7007,129.9,129.87,11.9007]
[1743170823235,7.7024,129.87,129.81,25.03947248]
[1743170823432,7.7024,129.87,129.82,36.06368684]
[1743170823738,7.7024,129.87,129.83,0.05632275]
[1743170823940,0.04954297,129.86,129.83,0.05632275]
[1743170824140,30.56,129.9,129.85,7.7033]
[1743170824435,30.56,129.93,129.85,30.56]
[1743170824642,30.56,129.93,129.87,7.7019]
[1743170824829,7.7005,129.9,129.87,7.7019]
[1743170825032,30.56,129.93,129.88,7.7015]
[1743170825233,30.56,129.93,129.85,34.7762]
[1743170825437,25.03947248,129.92,129.85,34.7762]
[1743170825730,0.05612724,129.9,129.88,0.05641871]
[1743170825935,7.75672724,129.9,129.88,0.05641871]
[1743170826137,0.05612724,129.9,129.88,0.05641871]
[1743170827141,25.09559972,129.9,129.88,0.05641871]
[1743170827340,55.71559972,129.9,129.88,0.05641871]
[1743170827840,7.7009,129.89,129.88,1.871e-05]
[1743170832031,55.71559972,129.9,129.8,3.9531]
[1743170832236,25.03947248,129.87,129.8,3.9531]
[1743170832439,55.55947248,129.87,129.8,3.9531]
[1743170832743,30.52,129.87,129.8,3.9531]
[1743170833144,0.05771485,129.85,129.83,7.7041]
[1743170833338,0.05771485,129.85,129.8,28.99257248]
[1743170833539,0.05771485,129.85,129.83,0.05803032]
[1743170833739,30.52,129.91,129.83,0.05803032]
[1743170833944,30.52,129.91,129.82,55.55947248]
[1743170834145,30.52,129.91,129.82,30.52]
[1743170834347,7.7026,129.87,129.82,30.52]
[1743170834543,30.52,129.91,129.82,30.52]
[1743170834846,7.7025,129.87,129.82,30.52]
[1743170835038,7.7025,129.87,129.85,0.05719429]
[1743170835238,0.05231993,129.88,129.85,0.05719429]
[1743170835434,7.7027,129.86,129.85,0.05719429]
[1743170835639,0.05231993,129.88,129.85,0.05719429]